[Event "*** Qualifier 1: Titled Tuesday 3|2 Blitz"]
[Site "Chess.com"]
[Date "2017.04.04"]
[Round "1"]
[White "Malev212"]
[Black "biveklama"]
[Result "0-1"]
[WhiteElo "2448"]
[BlackElo "2196"]
[TimeControl "180+2"]
[EndTime "13:02:23 PDT"]
[Termination "biveklama won by resignation"]

1. d3 {[%clk 0:03:02]} 1... g6 {[%clk 0:03:00.4]} 2. e4 {[%clk 0:02:59.2]} 2...
Bg7 {[%clk 0:02:59.5]} 3. Nc3 {[%clk 0:02:56.2]} 3... e6 {[%clk 0:02:58.6]} 4.
h4 {[%clk 0:02:58]} 4... h5 {[%clk 0:02:56.4]} 5. Bg5 {[%clk 0:02:55.5]} 5...
Ne7 {[%clk 0:02:53.5]} 6. Qd2 {[%clk 0:02:55.6]} 6... c6 {[%clk 0:02:51.7]} 7.
Nf3 {[%clk 0:02:55.5]} 7... d5 {[%clk 0:02:50]} 8. O-O-O {[%clk 0:02:56]} 8...
Qa5 {[%clk 0:02:32]} 9. e5 {[%clk 0:02:54.2]} 9... Nf5 {[%clk 0:02:23.8]} 10.
Kb1 {[%clk 0:02:53.2]} 10... c5 {[%clk 0:02:21.9]} 11. g3 {[%clk 0:02:52.1]}
11... Nc6 {[%clk 0:02:21.3]} 12. Bh3 {[%clk 0:02:51.8]} 12... Nfd4 {[%clk
0:02:21.9]} 13. Nxd4 {[%clk 0:02:49.5]} 13... cxd4 {[%clk 0:02:20.9]} 14. Ne4
{[%clk 0:02:50.5]} 14... dxe4 {[%clk 0:02:13.3]} 0-1

[Event "*** Qualifier 1: Titled Tuesday 3|2 Blitz"]
[Site "Chess.com"]
[Date "2017.04.04"]
[Round "1"]
[White "RitvarsReimanis"]
[Black "Quiet_Desperation"]
[Result "1-0"]
[WhiteElo "2427"]
[BlackElo "2084"]
[TimeControl "180+2"]
[EndTime "13:02:39 PDT"]
[Termination "RitvarsReimanis won by resignation"]

1. d4 {[%clk 0:03:02]} 1... Nf6 {[%clk 0:03:00.2]} 2. c4 {[%clk 0:03:02]} 2...
e6 {[%clk 0:03:01.5]} 3. Nc3 {[%clk 0:03:02.9]} 3... Bb4 {[%clk 0:03:00.7]} 4.
e3 {[%clk 0:03:04.3]} 4... b6 {[%clk 0:02:59.9]} 5. Ne2 {[%clk 0:03:06.2]} 5...
Ba6 {[%clk 0:02:58.8]} 6. a3 {[%clk 0:03:05.6]} 6... Bxc3+ {[%clk 0:02:58.8]} 7.
Nxc3 {[%clk 0:03:07.5]} 7... d5 {[%clk 0:03:00.2]} 8. Qb3 {[%clk 0:02:44]} 8...
O-O {[%clk 0:02:59.8]} 9. Be2 {[%clk 0:02:44.1]} 9... Nc6 {[%clk 0:02:58.5]} 10.
Qa4 {[%clk 0:02:41.5]} 10... Na5 {[%clk 0:02:57.6]} 11. b4 {[%clk 0:02:16.7]}
11... Nxc4 {[%clk 0:02:49.7]} 12. Qxa6 {[%clk 0:02:12.7]} 12... c5 {[%clk
0:02:43.4]} 13. O-O {[%clk 0:02:06]} 13... cxb4 {[%clk 0:02:43.8]} 14. axb4
{[%clk 0:02:07.9]} 14... Ne8 {[%clk 0:02:40.3]} 15. Bxc4 {[%clk 0:02:04.5]} 1-0

[Event "*** Qualifier 1: Titled Tuesday 3|2 Blitz"]
[Site "Chess.com"]
[Date "2017.04.04"]
[Round "1"]
[White "Rating-Schmating"]
[Black "Elshan1985"]
[Result "1/2-1/2"]
[WhiteElo "2221"]
[BlackElo "2506"]
[TimeControl "180+2"]
[EndTime "13:03:10 PDT"]
[Termination "Game drawn by agreement"]

1. e4 {[%clk 0:03:01.9]} 1... e5 {[%clk 0:02:59.9]} 2. Nf3 {[%clk 0:03:02.6]}
2... Nc6 {[%clk 0:03:01.6]} 3. d4 {[%clk 0:03:03.2]} 3... exd4 {[%clk
0:03:01.7]} 4. Nxd4 {[%clk 0:03:04.4]} 4... Bc5 {[%clk 0:03:01.4]} 5. Nxc6
{[%clk 0:03:04.1]} 5... Qf6 {[%clk 0:03:02]} 6. Qf3 {[%clk 0:03:04.7]} 6... dxc6
{[%clk 0:03:02.5]} 7. Nc3 {[%clk 0:03:02.4]} 7... Be6 {[%clk 0:03:02.6]} 8. Be3
{[%clk 0:03:00.9]} 8... Bxe3 {[%clk 0:02:58.5]} 9. Qxe3 {[%clk 0:03:01.3]} 9...
Ne7 {[%clk 0:02:59.3]} 10. Bd3 {[%clk 0:03:00.3]} 10... g5 {[%clk 0:03:00]} 11.
e5 {[%clk 0:02:57.1]} 11... Qg7 {[%clk 0:03:00.7]} 12. O-O-O {[%clk 0:02:52]}
12... Nd5 {[%clk 0:02:57.7]} 13. Nxd5 {[%clk 0:02:52.6]} 13... cxd5 {[%clk
0:02:58.8]} 14. Be2 {[%clk 0:02:39.3]} 14... c6 {[%clk 0:02:54.9]} 15. b3 {[%clk
0:02:29.3]} 15... h5 {[%clk 0:02:50]} 16. h4 {[%clk 0:02:26.6]} 16... g4 {[%clk
0:02:50.5]} 17. f4 {[%clk 0:02:25.5]} 17... Qg6 {[%clk 0:02:49.1]} 18. Bd3
{[%clk 0:02:24.9]} 18... Bf5 {[%clk 0:02:49.9]} 19. Bxf5 {[%clk 0:02:25.4]}
19... Qxf5 {[%clk 0:02:51.2]} 20. g3 {[%clk 0:02:27]} 20... O-O {[%clk
0:02:52.1]} 21. Qd3 {[%clk 0:02:27.7]} 21... Qxd3 {[%clk 0:02:52.5]} 22. Rxd3
{[%clk 0:02:24.6]} 22... Rae8 {[%clk 0:02:53.1]} 23. Re1 {[%clk 0:02:24.9]}
23... f6 {[%clk 0:02:54]} 24. Rde3 {[%clk 0:02:22.1]} 24... Kf7 {[%clk
0:02:55.3]} 25. exf6 {[%clk 0:02:19.8]} 25... Rxe3 {[%clk 0:02:55.2]} 26. Rxe3
{[%clk 0:02:20.7]} 26... Kxf6 {[%clk 0:02:57.1]} 27. Re5 {[%clk 0:02:21.9]}
27... Kg6 {[%clk 0:02:56.5]} 28. Re7 {[%clk 0:02:21.4]} 28... Rf7 {[%clk
0:02:57.8]} 1/2-1/2

[Event "*** Qualifier 1: Titled Tuesday 3|2 Blitz"]
[Site "Chess.com"]
[Date "2017.04.04"]
[Round "1"]
[White "poummba"]
[Black "Swarajan"]
[Result "1-0"]
[WhiteElo "2374"]
[BlackElo "1884"]
[TimeControl "180+2"]
[EndTime "13:03:40 PDT"]
[Termination "poummba won by resignation"]

1. e4 {[%clk 0:03:02]} 1... c5 {[%clk 0:03:00.1]} 2. Na3 {[%clk 0:03:01.4]} 2...
d6 {[%clk 0:03:00]} 3. g3 {[%clk 0:02:57.7]} 3... Nf6 {[%clk 0:03:00.1]} 4. Bg2
{[%clk 0:02:54.7]} 4... g6 {[%clk 0:03:00.2]} 5. c3 {[%clk 0:02:54.9]} 5... Bg7
{[%clk 0:02:59.1]} 6. Ne2 {[%clk 0:02:52.6]} 6... O-O {[%clk 0:02:58.9]} 7. d4
{[%clk 0:02:52.8]} 7... cxd4 {[%clk 0:02:58.8]} 8. cxd4 {[%clk 0:02:53.6]} 8...
Nc6 {[%clk 0:02:59.6]} 9. O-O {[%clk 0:02:54.2]} 9... Rb8 {[%clk 0:02:53.4]} 10.
h3 {[%clk 0:02:54.2]} 10... Bd7 {[%clk 0:02:51.9]} 11. Be3 {[%clk 0:02:54.8]}
11... a6 {[%clk 0:02:52.2]} 12. f4 {[%clk 0:02:38]} 12... Qa5 {[%clk 0:02:28.4]}
13. Nc4 {[%clk 0:02:36]} 13... Qb4 {[%clk 0:02:24.1]} 14. b3 {[%clk 0:02:28.6]}
14... b5 {[%clk 0:02:23]} 15. a3 {[%clk 0:02:24.8]} 15... bxc4 {[%clk 0:02:01]}
16. axb4 {[%clk 0:02:25.3]} 16... Nxb4 {[%clk 0:02:02.9]} 17. bxc4 {[%clk
0:02:22.1]} 17... a5 {[%clk 0:02:01.1]} 18. e5 {[%clk 0:02:23.2]} 18... Ne8
{[%clk 0:01:59.2]} 19. Rxa5 {[%clk 0:02:22.2]} 1-0

[Event "*** Qualifier 1: Titled Tuesday 3|2 Blitz"]
[Site "Chess.com"]
[Date "2017.04.04"]
[Round "1"]
[White "penguingm1"]
[Black "hypert"]
[Result "1-0"]
[WhiteElo "2592"]
[BlackElo "2267"]
[TimeControl "180+2"]
[EndTime "13:03:52 PDT"]
[Termination "penguingm1 won by checkmate"]

1. d4 {[%clk 0:03:02]} 1... d5 {[%clk 0:02:59.8]} 2. c4 {[%clk 0:02:58.9]} 2...
e6 {[%clk 0:03:00.1]} 3. Nc3 {[%clk 0:03:00]} 3... c6 {[%clk 0:03:00.2]} 4. e3
{[%clk 0:02:58.7]} 4... Bd6 {[%clk 0:02:58]} 5. Qc2 {[%clk 0:02:55.9]} 5... f5
{[%clk 0:02:57]} 6. Bd3 {[%clk 0:02:53.2]} 6... Nf6 {[%clk 0:02:51.7]} 7. Nge2
{[%clk 0:02:51.7]} 7... O-O {[%clk 0:02:51.9]} 8. f3 {[%clk 0:02:43.3]} 8... b6
{[%clk 0:02:49.5]} 9. O-O {[%clk 0:02:42.7]} 9... Qc7 {[%clk 0:02:43.6]} 10. h3
{[%clk 0:02:40.4]} 10... Qe7 {[%clk 0:02:37.5]} 11. e4 {[%clk 0:02:32.6]} 11...
fxe4 {[%clk 0:02:36.9]} 12. fxe4 {[%clk 0:02:33.6]} 12... Nxe4 {[%clk 0:02:25]}
13. Rxf8+ {[%clk 0:02:22.3]} 13... Qxf8 {[%clk 0:02:25.7]} 14. Nxe4 {[%clk
0:02:24]} 14... dxe4 {[%clk 0:02:26.6]} 15. Bxe4 {[%clk 0:02:25.9]} 15... h6
{[%clk 0:02:27]} 16. Be3 {[%clk 0:02:23.6]} 16... Bb7 {[%clk 0:02:22.6]} 17. c5
{[%clk 0:02:06.2]} 17... Be7 {[%clk 0:02:16.7]} 18. Rf1 {[%clk 0:02:05.4]} 18...
Qd8 {[%clk 0:02:16.8]} 19. Nf4 {[%clk 0:01:52.9]} 19... Bc8 {[%clk 0:02:11.9]}
20. Bh7+ {[%clk 0:01:53.8]} 20... Kh8 {[%clk 0:02:08]} 21. Ng6+ {[%clk
0:01:50.4]} 21... Kxh7 {[%clk 0:02:08.8]} 22. Nf8+ {[%clk 0:01:52.3]} 22... Kg8
{[%clk 0:02:08.9]} 23. Qh7# {[%clk 0:01:54.2]} 1-0

[Event "*** Qualifier 1: Titled Tuesday 3|2 Blitz"]
[Site "Chess.com"]
[Date "2017.04.04"]
[Round "1"]
[White "GamayevOleg"]
[Black "SidArun"]
[Result "1-0"]
[WhiteElo "2404"]
[BlackElo "2041"]
[TimeControl "180+2"]
[EndTime "13:03:57 PDT"]
[Termination "GamayevOleg won by resignation"]

1. d3 {[%clk 0:03:01.9]} 1... d5 {[%clk 0:03:00.7]} 2. e4 {[%clk 0:03:03.5]}
2... dxe4 {[%clk 0:03:00.5]} 3. dxe4 {[%clk 0:03:05.4]} 3... Qxd1+ {[%clk
0:03:02.1]} 4. Kxd1 {[%clk 0:03:07.3]} 4... e5 {[%clk 0:03:02.7]} 5. Nf3 {[%clk
0:03:08.7]} 5... Bg4 {[%clk 0:03:02.8]} 6. Be2 {[%clk 0:03:09.6]} 6... Nd7
{[%clk 0:03:03.6]} 7. Nfd2 {[%clk 0:03:10.7]} 7... Bxe2+ {[%clk 0:03:03.5]} 8.
Kxe2 {[%clk 0:03:12.6]} 8... Ngf6 {[%clk 0:03:01.3]} 9. f3 {[%clk 0:03:14]} 9...
Bc5 {[%clk 0:02:57.1]} 10. c3 {[%clk 0:03:14]} 10... a5 {[%clk 0:02:57.8]} 11.
a4 {[%clk 0:03:14.5]} 11... O-O {[%clk 0:02:53]} 12. Nc4 {[%clk 0:03:15.2]}
12... c6 {[%clk 0:02:27.1]} 13. Bg5 {[%clk 0:03:15.2]} 13... Be7 {[%clk
0:02:17.8]} 14. Bxf6 {[%clk 0:03:15.6]} 14... Bxf6 {[%clk 0:02:16.7]} 15. Rd1
{[%clk 0:03:16.4]} 15... Rfd8 {[%clk 0:02:17.7]} 16. Rxd7 {[%clk 0:03:17]} 16...
Rxd7 {[%clk 0:02:17.4]} 17. Nb6 {[%clk 0:03:18.4]} 17... Rad8 {[%clk 0:02:17.9]}
18. Nxd7 {[%clk 0:03:19.5]} 18... Rxd7 {[%clk 0:02:19.1]} 19. Nd2 {[%clk
0:03:21]} 19... Bd8 {[%clk 0:02:17]} 20. Nc4 {[%clk 0:03:21.3]} 20... f6 {[%clk
0:02:15.4]} 21. Rd1 {[%clk 0:03:22.4]} 21... Rxd1 {[%clk 0:02:11.8]} 22. Kxd1
{[%clk 0:03:23.8]} 22... Bc7 {[%clk 0:02:12.7]} 23. Kc2 {[%clk 0:03:24.1]} 23...
Kf7 {[%clk 0:02:11.3]} 24. Kd3 {[%clk 0:03:23]} 24... Ke6 {[%clk 0:02:12.6]} 25.
b3 {[%clk 0:03:23.8]} 25... g6 {[%clk 0:01:43.4]} 26. h3 {[%clk 0:03:24.4]}
26... f5 {[%clk 0:01:44.6]} 27. b4 {[%clk 0:03:18.8]} 27... axb4 {[%clk
0:01:45.2]} 28. cxb4 {[%clk 0:03:20.1]} 28... fxe4+ {[%clk 0:01:40.2]} 29. fxe4
{[%clk 0:03:18.5]} 29... b5 {[%clk 0:01:39.1]} 30. axb5 {[%clk 0:03:19.6]} 30...
cxb5 {[%clk 0:01:40.4]} 31. Na3 {[%clk 0:03:20.9]} 31... Bd6 {[%clk 0:01:35.4]}
32. Kc3 {[%clk 0:03:22]} 32... Kf6 {[%clk 0:01:32.7]} 33. Nxb5 {[%clk
0:03:22.8]} 33... Be7 {[%clk 0:01:34]} 34. Nc7 {[%clk 0:03:23.8]} 34... Kg5
{[%clk 0:01:35]} 35. Nd5 {[%clk 0:03:25.2]} 1-0

[Event "*** Qualifier 1: Titled Tuesday 3|2 Blitz"]
[Site "Chess.com"]
[Date "2017.04.04"]
[Round "1"]
[White "Saitama_Hero"]
[Black "donotreadit"]
[Result "0-1"]
[WhiteElo "2191"]
[BlackElo "2494"]
[TimeControl "180+2"]
[EndTime "13:04:06 PDT"]
[Termination "donotreadit won by resignation"]

1. d4 {[%clk 0:03:02]} 1... d6 {[%clk 0:03:00.6]} 2. e4 {[%clk 0:03:01.3]} 2...
g6 {[%clk 0:03:01.3]} 3. Nc3 {[%clk 0:03:02.5]} 3... Bg7 {[%clk 0:03:02.5]} 4.
Be3 {[%clk 0:03:03.6]} 4... c6 {[%clk 0:03:03.1]} 5. Qd2 {[%clk 0:03:04.9]} 5...
b5 {[%clk 0:03:03.7]} 6. h4 {[%clk 0:03:01.7]} 6... h5 {[%clk 0:03:03.3]} 7. f4
{[%clk 0:03:01]} 7... Nf6 {[%clk 0:03:02.7]} 8. e5 {[%clk 0:02:54.6]} 8... b4
{[%clk 0:02:52.7]} 9. exf6 {[%clk 0:02:51]} 9... bxc3 {[%clk 0:02:53.2]} 10.
bxc3 {[%clk 0:02:52.1]} 10... Bxf6 {[%clk 0:02:53.8]} 11. Nf3 {[%clk 0:02:53.5]}
11... Bg4 {[%clk 0:02:50.3]} 12. Be2 {[%clk 0:02:49.6]} 12... Nd7 {[%clk
0:02:50.5]} 13. O-O {[%clk 0:02:48.5]} 13... O-O {[%clk 0:02:48.8]} 14. Ng5
{[%clk 0:02:47.7]} 14... Bxe2 {[%clk 0:02:49.4]} 15. Qxe2 {[%clk 0:02:49.3]}
15... Qa5 {[%clk 0:02:49.2]} 16. f5 {[%clk 0:02:46.8]} 16... Qxc3 {[%clk
0:02:43.7]} 17. Rad1 {[%clk 0:02:40.5]} 17... Nb6 {[%clk 0:02:36.9]} 18. fxg6
{[%clk 0:02:35.9]} 18... fxg6 {[%clk 0:02:37]} 19. Rd3 {[%clk 0:02:26.4]} 19...
Qc4 {[%clk 0:02:34.6]} 20. Qf3 {[%clk 0:02:22]} 20... Bxg5 {[%clk 0:02:26.9]}
21. Qg3 {[%clk 0:02:21.4]} 21... Bxe3+ {[%clk 0:02:25.3]} 22. Kh2 {[%clk
0:02:18.9]} 22... Rxf1 {[%clk 0:02:15.5]} 23. Qxg6+ {[%clk 0:02:11.8]} 23... Kf8
{[%clk 0:02:16.1]} 24. Rxe3 {[%clk 0:02:11.8]} 24... Qf7 {[%clk 0:02:14.3]} 25.
Qh6+ {[%clk 0:02:10.9]} 25... Ke8 {[%clk 0:02:07.3]} 26. Rg3 {[%clk 0:02:12.3]}
26... Kd7 {[%clk 0:02:04.8]} 0-1

[Event "*** Qualifier 1: Titled Tuesday 3|2 Blitz"]
[Site "Chess.com"]
[Date "2017.04.04"]
[Round "1"]
[White "evgenyermolaev"]
[Black "kharov2001"]
[Result "1-0"]
[WhiteElo "2372"]
[BlackElo "1835"]
[TimeControl "180+2"]
[EndTime "13:04:17 PDT"]
[Termination "evgenyermolaev won by resignation"]

1. e4 {[%clk 0:03:02]} 1... c5 {[%clk 0:02:57.2]} 2. Nf3 {[%clk 0:02:51.1]} 2...
Nc6 {[%clk 0:02:52.7]} 3. d4 {[%clk 0:02:53]} 3... cxd4 {[%clk 0:02:53.4]} 4.
Nxd4 {[%clk 0:02:52.9]} 4... g6 {[%clk 0:02:54.5]} 5. Nc3 {[%clk 0:02:51.7]}
5... Bg7 {[%clk 0:02:55.4]} 6. Be3 {[%clk 0:02:52.5]} 6... Nf6 {[%clk
0:02:56.4]} 7. Nxc6 {[%clk 0:02:53.4]} 7... bxc6 {[%clk 0:02:56.6]} 8. e5 {[%clk
0:02:54.5]} 8... Ng8 {[%clk 0:02:57.7]} 9. Bd4 {[%clk 0:02:54.1]} 9... d6 {[%clk
0:02:54.1]} 10. exd6 {[%clk 0:02:52.1]} 10... Bxd4 {[%clk 0:02:50.9]} 11. Qxd4
{[%clk 0:02:52.4]} 11... Nf6 {[%clk 0:02:48.2]} 12. O-O-O {[%clk 0:02:00.1]}
12... O-O {[%clk 0:02:45.4]} 13. dxe7 {[%clk 0:01:44.9]} 13... Qxe7 {[%clk
0:02:44.4]} 14. Bc4 {[%clk 0:01:45.9]} 14... c5 {[%clk 0:02:27.5]} 15. Qh4
{[%clk 0:01:35.4]} 15... Kg7 {[%clk 0:02:26.4]} 16. Rhe1 {[%clk 0:01:34.2]}
16... Qc7 {[%clk 0:02:17.7]} 17. Qxf6+ {[%clk 0:01:35]} 1-0

[Event "*** Qualifier 1: Titled Tuesday 3|2 Blitz"]
[Site "Chess.com"]
[Date "2017.04.04"]
[Round "1"]
[White "aNaartjieZA"]
[Black "joppie2"]
[Result "0-1"]
[WhiteElo "2285"]
[BlackElo "2605"]
[TimeControl "180+2"]
[EndTime "13:04:45 PDT"]
[Termination "joppie2 won by resignation"]

1. e4 {[%clk 0:03:02]} 1... e5 {[%clk 0:02:59.3]} 2. Nf3 {[%clk 0:03:01.5]} 2...
Nc6 {[%clk 0:03:00.8]} 3. Bb5 {[%clk 0:03:02.3]} 3... a6 {[%clk 0:03:01.5]} 4.
Ba4 {[%clk 0:03:03]} 4... g6 {[%clk 0:03:03]} 5. O-O {[%clk 0:03:02.8]} 5... Bg7
{[%clk 0:03:03.6]} 6. c3 {[%clk 0:03:01.3]} 6... d6 {[%clk 0:03:04.5]} 7. Re1
{[%clk 0:02:59.9]} 7... Bd7 {[%clk 0:03:05.6]} 8. d3 {[%clk 0:02:52.4]} 8...
Nge7 {[%clk 0:03:04.4]} 9. Nbd2 {[%clk 0:02:50.9]} 9... O-O {[%clk 0:03:05.5]}
10. Nf1 {[%clk 0:02:47.8]} 10... h6 {[%clk 0:03:06.5]} 11. d4 {[%clk 0:02:37.4]}
11... exd4 {[%clk 0:02:59.5]} 12. cxd4 {[%clk 0:02:37.7]} 12... Bg4 {[%clk
0:03:00.5]} 13. d5 {[%clk 0:02:30.9]} 13... Nd4 {[%clk 0:02:56.9]} 14. N1d2
{[%clk 0:02:28.5]} 14... b5 {[%clk 0:02:57.2]} 15. Bc2 {[%clk 0:02:27.1]} 15...
c5 {[%clk 0:02:58.7]} 16. h3 {[%clk 0:02:26.4]} 16... Nxc2 {[%clk 0:02:52.9]}
17. Qxc2 {[%clk 0:02:26.2]} 17... Bd7 {[%clk 0:02:54.3]} 18. a4 {[%clk
0:02:20.4]} 18... f5 {[%clk 0:02:54.7]} 19. axb5 {[%clk 0:02:16.5]} 19... axb5
{[%clk 0:02:47]} 20. Rxa8 {[%clk 0:02:16.2]} 20... Qxa8 {[%clk 0:02:48.9]} 21.
Nf1 {[%clk 0:02:13.1]} 21... fxe4 {[%clk 0:02:48.6]} 22. Qxe4 {[%clk 0:02:13.4]}
22... Rf7 {[%clk 0:02:49.7]} 23. Nh4 {[%clk 0:02:06.5]} 23... g5 {[%clk
0:02:44]} 24. Nf3 {[%clk 0:01:53.8]} 24... Qxd5 {[%clk 0:02:43.9]} 25. Qxd5
{[%clk 0:01:48.7]} 25... Nxd5 {[%clk 0:02:44.4]} 26. Rd1 {[%clk 0:01:49.7]}
26... Bc6 {[%clk 0:02:43.7]} 27. Ng3 {[%clk 0:01:46.6]} 27... Bf8 {[%clk
0:02:26.1]} 28. Ne4 {[%clk 0:01:38.1]} 28... Nb4 {[%clk 0:02:27.4]} 29. Nxd6
{[%clk 0:01:31.8]} 29... Rd7 {[%clk 0:02:27]} 0-1

[Event "*** Qualifier 1: Titled Tuesday 3|2 Blitz"]
[Site "Chess.com"]
[Date "2017.04.04"]
[Round "1"]
[White "FMchesstrainer"]
[Black "scrapnel"]
[Result "0-1"]
[WhiteElo "2368"]
[BlackElo "2252"]
[TimeControl "180+2"]
[EndTime "13:05:14 PDT"]
[Termination "scrapnel won by resignation"]

1. d4 {[%clk 0:03:02]} 1... Nf6 {[%clk 0:02:59.5]} 2. Bg5 {[%clk 0:03:02]} 2...
d5 {[%clk 0:02:56.9]} 3. Bxf6 {[%clk 0:03:02.2]} 3... exf6 {[%clk 0:02:57.2]} 4.
e3 {[%clk 0:03:02]} 4... Bd6 {[%clk 0:02:57.3]} 5. Nd2 {[%clk 0:03:01.1]} 5...
O-O {[%clk 0:02:56.6]} 6. Ne2 {[%clk 0:03:01.3]} 6... c6 {[%clk 0:02:56.1]} 7.
g3 {[%clk 0:03:02.4]} 7... Re8 {[%clk 0:02:56.7]} 8. Bg2 {[%clk 0:03:03.6]} 8...
Nd7 {[%clk 0:02:57.2]} 9. c4 {[%clk 0:03:04.6]} 9... dxc4 {[%clk 0:02:55.9]} 10.
Nxc4 {[%clk 0:03:05.1]} 10... Bb4+ {[%clk 0:02:54]} 11. Nc3 {[%clk 0:03:05.4]}
11... Nb6 {[%clk 0:02:54]} 12. Qb3 {[%clk 0:02:59.4]} 12... Qxd4 {[%clk
0:02:42.1]} 13. Qxb4 {[%clk 0:02:42.6]} 13... Qxc4 {[%clk 0:02:37.3]} 14. Qxc4
{[%clk 0:02:38.4]} 14... Nxc4 {[%clk 0:02:37.1]} 15. O-O-O {[%clk 0:02:40]}
15... f5 {[%clk 0:02:18]} 16. Rd4 {[%clk 0:02:40.1]} 16... Ne5 {[%clk 0:02:17]}
17. Rhd1 {[%clk 0:02:36.8]} 17... Be6 {[%clk 0:02:15.9]} 18. h3 {[%clk
0:02:33.6]} 18... Kf8 {[%clk 0:02:13.4]} 19. f4 {[%clk 0:02:30.8]} 19... Ng6
{[%clk 0:02:11.9]} 20. e4 {[%clk 0:02:28.6]} 20... fxe4 {[%clk 0:02:08.6]} 21.
Nxe4 {[%clk 0:02:29.6]} 21... Bd5 {[%clk 0:01:54.5]} 22. R1d2 {[%clk 0:02:15.7]}
22... b6 {[%clk 0:01:36.5]} 23. Nd6 {[%clk 0:02:14.6]} 23... Re1+ {[%clk
0:01:34]} 24. Kc2 {[%clk 0:02:13.8]} 24... Bxg2 {[%clk 0:01:31]} 25. Rxg2 {[%clk
0:02:13.9]} 25... c5 {[%clk 0:01:32]} 26. Rd3 {[%clk 0:02:06.8]} 26... Ne7
{[%clk 0:01:32.7]} 27. Rgd2 {[%clk 0:01:58]} 27... Nc6 {[%clk 0:01:31.9]} 28. a3
{[%clk 0:01:51.8]} 28... Nd4+ {[%clk 0:01:31.7]} 29. Kc3 {[%clk 0:01:47]} 29...
Rc1+ {[%clk 0:01:31.3]} 0-1

[Event "*** Qualifier 1: Titled Tuesday 3|2 Blitz"]
[Site "Chess.com"]
[Date "2017.04.04"]
[Round "1"]
[White "VSERGUEI"]
[Black "GameOverBro"]
[Result "1-0"]
[WhiteElo "2573"]
[BlackElo "2244"]
[TimeControl "180+2"]
[EndTime "13:05:17 PDT"]
[Termination "VSERGUEI won by resignation"]

1. d4 {[%clk 0:03:02]} 1... Nf6 {[%clk 0:02:57.6]} 2. c4 {[%clk 0:03:03.9]} 2...
d6 {[%clk 0:02:58]} 3. Nc3 {[%clk 0:03:05.8]} 3... Nbd7 {[%clk 0:02:57.1]} 4. e4
{[%clk 0:02:58.9]} 4... e5 {[%clk 0:02:57.8]} 5. Nf3 {[%clk 0:02:59.2]} 5... Be7
{[%clk 0:02:58.4]} 6. Be2 {[%clk 0:02:59.3]} 6... O-O {[%clk 0:02:59.2]} 7. O-O
{[%clk 0:02:59.2]} 7... c6 {[%clk 0:03:00.2]} 8. d5 {[%clk 0:02:59.9]} 8... Nc5
{[%clk 0:02:58.3]} 9. Qc2 {[%clk 0:02:59.1]} 9... a5 {[%clk 0:02:49.4]} 10. Be3
{[%clk 0:02:58.6]} 10... Qc7 {[%clk 0:02:49.9]} 11. Nd2 {[%clk 0:02:58]} 11...
h6 {[%clk 0:02:44]} 12. b3 {[%clk 0:02:55.2]} 12... Nh7 {[%clk 0:02:43.3]} 13.
a3 {[%clk 0:02:53.5]} 13... Bg5 {[%clk 0:02:43.6]} 14. b4 {[%clk 0:02:53.4]}
14... Bxe3 {[%clk 0:02:42.1]} 15. fxe3 {[%clk 0:02:53.7]} 15... axb4 {[%clk
0:02:43.1]} 16. axb4 {[%clk 0:02:54]} 16... Rxa1 {[%clk 0:02:45]} 17. Rxa1
{[%clk 0:02:53.7]} 17... Na6 {[%clk 0:02:46.9]} 18. Rb1 {[%clk 0:02:46.2]} 18...
Bd7 {[%clk 0:02:41.1]} 19. dxc6 {[%clk 0:02:45.6]} 19... bxc6 {[%clk 0:02:40.4]}
20. b5 {[%clk 0:02:45.9]} 20... Nc5 {[%clk 0:02:40.5]} 21. Nb3 {[%clk
0:02:43.2]} 21... Rb8 {[%clk 0:02:26.2]} 22. Nxc5 {[%clk 0:02:41.8]} 22... dxc5
{[%clk 0:02:27.2]} 23. Qb3 {[%clk 0:02:32.9]} 23... Nf6 {[%clk 0:02:21.1]} 24.
b6 {[%clk 0:02:31.5]} 24... Qd6 {[%clk 0:02:19.1]} 25. Rd1 {[%clk 0:02:28.2]}
25... Qe7 {[%clk 0:02:16.1]} 26. h3 {[%clk 0:02:28]} 26... Be6 {[%clk
0:02:15.1]} 27. Kh2 {[%clk 0:02:16.9]} 27... Nd7 {[%clk 0:02:15.2]} 28. b7
{[%clk 0:02:17.4]} 28... Nf6 {[%clk 0:02:11.8]} 29. Rb1 {[%clk 0:02:17.2]} 29...
Ne8 {[%clk 0:02:12.7]} 30. Qb6 {[%clk 0:02:15.8]} 30... Nd6 {[%clk 0:01:56.4]}
31. Qxc5 {[%clk 0:02:12.4]} 31... f6 {[%clk 0:01:49.9]} 32. Qxc6 {[%clk
0:02:11.3]} 32... Rxb7 {[%clk 0:01:47.4]} 33. Rxb7 {[%clk 0:02:09.9]} 33... Nxb7
{[%clk 0:01:49.3]} 34. Nd5 {[%clk 0:02:10.6]} 34... Bxd5 {[%clk 0:01:49.3]} 35.
exd5 {[%clk 0:02:10.7]} 35... Nd6 {[%clk 0:01:40.9]} 36. c5 {[%clk 0:02:09.1]}
36... Ne4 {[%clk 0:01:41.1]} 37. d6 {[%clk 0:02:09.2]} 1-0

[Event "*** Qualifier 1: Titled Tuesday 3|2 Blitz"]
[Site "Chess.com"]
[Date "2017.04.04"]
[Round "1"]
[White "jncool68"]
[Black "keisyzrk"]
[Result "0-1"]
[WhiteElo "2517"]
[BlackElo "2242"]
[TimeControl "180+2"]
[EndTime "13:05:37 PDT"]
[Termination "keisyzrk won by resignation"]

1. e4 {[%clk 0:03:02]} 1... e5 {[%clk 0:02:58.8]} 2. Nf3 {[%clk 0:03:01.8]} 2...
Nc6 {[%clk 0:03:00.3]} 3. Bb5 {[%clk 0:03:02.6]} 3... a6 {[%clk 0:03:01.6]} 4.
Ba4 {[%clk 0:03:03.8]} 4... Nge7 {[%clk 0:03:01.4]} 5. c3 {[%clk 0:03:03.7]}
5... g6 {[%clk 0:03:01.8]} 6. d4 {[%clk 0:03:04.8]} 6... exd4 {[%clk 0:03:02.7]}
7. cxd4 {[%clk 0:03:06]} 7... b5 {[%clk 0:03:04.3]} 8. Bc2 {[%clk 0:03:04.1]}
8... Bg7 {[%clk 0:03:03.6]} 9. d5 {[%clk 0:03:04.6]} 9... Nb4 {[%clk 0:02:59.7]}
10. Bb3 {[%clk 0:03:04.8]} 10... a5 {[%clk 0:02:52.2]} 11. a3 {[%clk 0:03:03.6]}
11... Na6 {[%clk 0:02:53.4]} 12. d6 {[%clk 0:03:04.8]} 12... cxd6 {[%clk
0:02:54]} 13. Nc3 {[%clk 0:03:05.1]} 13... Rb8 {[%clk 0:02:34.8]} 14. Nd5 {[%clk
0:02:58.5]} 14... Nxd5 {[%clk 0:02:31.2]} 15. Qxd5 {[%clk 0:02:53.3]} 15... O-O
{[%clk 0:02:32.2]} 16. Bg5 {[%clk 0:02:46.6]} 16... Qb6 {[%clk 0:02:32.1]} 17.
O-O {[%clk 0:02:47.2]} 17... Bb7 {[%clk 0:02:30.2]} 18. Qd1 {[%clk 0:02:40]}
18... Bxe4 {[%clk 0:02:30.6]} 19. Be7 {[%clk 0:02:35]} 19... Rfe8 {[%clk
0:02:13.3]} 20. Bxd6 {[%clk 0:02:35.7]} 20... Bxf3 {[%clk 0:02:09.5]} 21. Qxf3
{[%clk 0:02:22.1]} 21... Qxd6 {[%clk 0:02:08.7]} 22. Bxf7+ {[%clk 0:02:21.8]}
22... Kh8 {[%clk 0:02:09.7]} 23. Bxe8 {[%clk 0:02:22.5]} 23... Rxe8 {[%clk
0:02:10.5]} 24. Rad1 {[%clk 0:02:18.9]} 24... Qc6 {[%clk 0:01:44.3]} 25. Qg4
{[%clk 0:02:03.6]} 25... d5 {[%clk 0:01:39.9]} 26. Rfe1 {[%clk 0:02:01.8]} 26...
Rf8 {[%clk 0:01:35.6]} 27. Re7 {[%clk 0:01:59.9]} 27... Qc5 {[%clk 0:01:32.4]}
28. Qh4 {[%clk 0:01:49.1]} 28... g5 {[%clk 0:01:28.7]} 0-1